[Event "Titled Tuesday Blitz August 1 Early 2023"]
[White "Stribuk, Artiom"]
[Black "Stachanczyk, Jacek"]
[WhiteFideId "13515659"]
[BlackFideId "1116657"]
[WhiteElo "2756"]
[BlackElo "2427"]
[Result "1-0"]
[Round "1"]
[TimeControl "180+1"]
[Date "2023.08.01"]
[WhiteClock "0:01:10"]
[BlackClock "0:00:32"]
[Board "80"]

1. d4 {[%clk 0:02:57]}  Nf6 {[%clk 0:02:59]} 2. c4 {[%clk 0:02:55]}  g6 {[%clk 0:02:58]} 3. g3 {[%clk 0:02:54]}  c6 {[%clk 0:02:56]} 4. Bg2 {[%clk 0:02:50]}  d5 {[%clk 0:02:56]} 5. Qb3 {[%clk 0:02:48]}  dxc4 {[%clk 0:02:41]} 6. Qxc4 {[%clk 0:02:47]}  Bg7 {[%clk 0:02:39]} 7. Nf3 {[%clk 0:02:46]}  O-O {[%clk 0:02:37]} 8. O-O {[%clk 0:02:46]}  Be6 {[%clk 0:02:29]} 9. Qa4 {[%clk 0:02:46]}  Nbd7 {[%clk 0:02:09]} 10. Nc3 {[%clk 0:02:41]}  a6 {[%clk 0:01:55]} 11. Rd1 {[%clk 0:02:40]}  b5 {[%clk 0:01:50]} 12. Qc2 {[%clk 0:02:40]}  Qb6 {[%clk 0:01:49]} 13. h3 {[%clk 0:02:04]}  h6 {[%clk 0:01:29]} 14. e4 {[%clk 0:02:02]}  Rac8 {[%clk 0:01:29]} 15. Be3 {[%clk 0:02:02]}  b4 {[%clk 0:01:03]} 16. Na4 {[%clk 0:02:00]}  Qa5 {[%clk 0:01:00]} 17. b3 {[%clk 0:01:24]}  Kh7 {[%clk 0:00:59]} 18. Rac1 {[%clk 0:01:23]}  Rfe8 {[%clk 0:00:50]} 19. Nd2 {[%clk 0:01:11]}  Qh5 {[%clk 0:00:38]} 20. g4 {[%clk 0:01:11]}  Qh4 {[%clk 0:00:32]} 21. Nf3 {[%clk 0:01:10]} 1-0


[Site "https://www.chess.com"]

[Event "Titled Tuesday Blitz August 1 Early 2023"]
[White "Mikhailovsky, Vladimir"]
[Black "Rozhkov, Viacheslav"]
[WhiteFideId "34105414"]
[BlackFideId "4181484"]
[WhiteElo "2751"]
[BlackElo "2424"]
[Result "1-0"]
[Round "1"]
[TimeControl "180+1"]
[Date "2023.08.01"]
[WhiteClock "0:02:34"]
[BlackClock "0:02:24"]
[Board "82"]

1. e4 {[%clk 0:02:58]}  c5 {[%clk 0:02:59]} 2. Nf3 {[%clk 0:02:58]}  Nc6 {[%clk 0:02:59]} 3. b4 {[%clk 0:02:57]}  cxb4 {[%clk 0:02:57]} 4. d4 {[%clk 0:02:56]}  d5 {[%clk 0:02:57]} 5. exd5 {[%clk 0:02:57]}  Qxd5 {[%clk 0:02:57]} 6. c4 {[%clk 0:02:58]}  bxc3 {[%clk 0:02:57]} 7. Nxc3 {[%clk 0:02:58]}  Qa5 {[%clk 0:02:55]} 8. d5 {[%clk 0:02:59]}  e6 {[%clk 0:02:51]} 9. dxc6 {[%clk 0:02:54]}  Qxc3+ {[%clk 0:02:51]} 10. Bd2 {[%clk 0:02:54]}  Qxc6 {[%clk 0:02:52]} 11. Ne5 {[%clk 0:02:39]}  Qd5 {[%clk 0:02:44]} 12. Qa4+ {[%clk 0:02:35]}  Bd7 {[%clk 0:02:24]} 13. Nxd7 {[%clk 0:02:34]} 1-0


[Site "https://www.chess.com"]

[Event "Titled Tuesday Blitz August 1 Early 2023"]
[White "carokannlover213"]
[Black "Swicarz, Maciej"]
[BlackFideId "1113585"]
[WhiteElo "2750"]
[BlackElo "2421"]
[Result "1/2-1/2"]
[Round "1"]
[TimeControl "180+1"]
[Date "2023.08.01"]
[WhiteClock "0:00:14"]
[BlackClock "0:00:18"]
[Board "84"]

1. c4 {[%clk 0:02:59]}  Nf6 {[%clk 0:02:57]} 2. Nf3 {[%clk 0:02:58]}  e6 {[%clk 0:02:55]} 3. Nc3 {[%clk 0:02:57]}  d5 {[%clk 0:02:53]} 4. e3 {[%clk 0:02:58]}  c6 {[%clk 0:02:51]} 5. b3 {[%clk 0:02:58]}  Bd6 {[%clk 0:02:49]} 6. Bb2 {[%clk 0:02:58]}  O-O {[%clk 0:02:49]} 7. Be2 {[%clk 0:02:59]}  Re8 {[%clk 0:02:48]} 8. O-O {[%clk 0:02:59]}  Nbd7 {[%clk 0:02:46]} 9. d4 {[%clk 0:02:59]}  Nf8 {[%clk 0:02:41]} 10. Qc2 {[%clk 0:02:58]}  Ng6 {[%clk 0:02:38]} 11. Rfe1 {[%clk 0:02:56]}  Bd7 {[%clk 0:02:24]} 12. Bf1 {[%clk 0:02:51]}  Rc8 {[%clk 0:02:22]} 13. e4 {[%clk 0:02:51]}  dxe4 {[%clk 0:02:19]} 14. Nxe4 {[%clk 0:02:51]}  Nxe4 {[%clk 0:02:19]} 15. Qxe4 {[%clk 0:02:52]}  Qf6 {[%clk 0:02:07]} 16. Rad1 {[%clk 0:02:46]}  Qf4 {[%clk 0:02:07]} 17. Qxf4 {[%clk 0:02:40]}  Bxf4 {[%clk 0:02:08]} 18. Ne5 {[%clk 0:02:20]}  Rcd8 {[%clk 0:01:59]} 19. g3 {[%clk 0:02:16]}  Bg5 {[%clk 0:01:59]} 20. f4 {[%clk 0:02:00]}  Nxe5 {[%clk 0:01:51]} 21. dxe5 {[%clk 0:01:57]}  Be7 {[%clk 0:01:50]} 22. Bd4 {[%clk 0:01:46]}  c5 {[%clk 0:01:44]} 23. Be3 {[%clk 0:01:46]}  Bc6 {[%clk 0:01:42]} 24. Bg2 {[%clk 0:01:41]}  Bxg2 {[%clk 0:01:40]} 25. Kxg2 {[%clk 0:01:42]}  b6 {[%clk 0:01:40]} 26. Kf3 {[%clk 0:01:41]}  Rxd1 {[%clk 0:01:36]} 27. Rxd1 {[%clk 0:01:42]}  Rd8 {[%clk 0:01:36]} 28. Rg1 {[%clk 0:01:42]}  h5 {[%clk 0:01:35]} 29. h3 {[%clk 0:01:41]}  g6 {[%clk 0:01:33]} 30. Ke4 {[%clk 0:01:40]}  Kf8 {[%clk 0:01:24]} 31. Rb1 {[%clk 0:01:17]}  Rd7 {[%clk 0:01:21]} 32. a3 {[%clk 0:01:16]}  Rd8 {[%clk 0:01:20]} 33. b4 {[%clk 0:01:07]}  cxb4 {[%clk 0:01:18]} 34. axb4 {[%clk 0:01:08]}  Ke8 {[%clk 0:01:14]} 35. c5 {[%clk 0:00:54]}  bxc5 {[%clk 0:01:12]} 36. bxc5 {[%clk 0:00:46]}  Rc8 {[%clk 0:01:12]} 37. Ra1 {[%clk 0:00:45]}  Rc7 {[%clk 0:01:08]} 38. Ra5 {[%clk 0:00:45]}  Kd7 {[%clk 0:01:06]} 39. Kd3 {[%clk 0:00:43]}  Kc8 {[%clk 0:00:58]} 40. Kc4 {[%clk 0:00:40]}  Kb7 {[%clk 0:00:57]} 41. Rb5+ {[%clk 0:00:38]}  Kc8 {[%clk 0:00:56]} 42. Ra5 {[%clk 0:00:38]}  Kb7 {[%clk 0:00:56]} 43. g4 {[%clk 0:00:38]}  hxg4 {[%clk 0:00:56]} 44. hxg4 {[%clk 0:00:39]}  Rd7 {[%clk 0:00:53]} 45. Ra1 {[%clk 0:00:22]}  Rd5 {[%clk 0:00:37]} 46. c6+ {[%clk 0:00:17]}  Kxc6 {[%clk 0:00:34]} 47. Ra6+ {[%clk 0:00:18]}  Kd7 {[%clk 0:00:31]} 48. Rxa7+ {[%clk 0:00:19]}  Ke8 {[%clk 0:00:32]} 49. Ra8+ {[%clk 0:00:18]}  Rd8 {[%clk 0:00:32]} 50. Ra1 {[%clk 0:00:19]}  Rd5 {[%clk 0:00:27]} 51. Rh1 {[%clk 0:00:19]}  g5 {[%clk 0:00:26]} 52. Rh8+ {[%clk 0:00:17]}  Kd7 {[%clk 0:00:26]} 53. Rh7 {[%clk 0:00:16]}  gxf4 {[%clk 0:00:25]} 54. Bxf4 {[%clk 0:00:17]}  Ke8 {[%clk 0:00:25]} 55. Rh8+ {[%clk 0:00:18]}  Kd7 {[%clk 0:00:26]} 56. g5 {[%clk 0:00:18]}  Rd1 {[%clk 0:00:24]} 57. Rh7 {[%clk 0:00:16]}  Ke8 {[%clk 0:00:24]} 58. Rh8+ {[%clk 0:00:17]}  Kd7 {[%clk 0:00:22]} 59. Rh7 {[%clk 0:00:17]}  Ke8 {[%clk 0:00:21]} 60. Rh8+ {[%clk 0:00:14]}  Kd7 {[%clk 0:00:18]} 1/2-1/2


[Site "https://www.chess.com"]

[Event "Titled Tuesday Blitz August 1 Early 2023"]
[White "KorolDimitriy75"]
[Black "Csonka, Balazs"]
[BlackFideId "742910"]
[WhiteElo "2420"]
[BlackElo "2745"]
[Result "1-0"]
[Round "1"]
[TimeControl "180+1"]
[Date "2023.08.01"]
[WhiteClock "0:00:06"]
[BlackClock "0:00:06"]
[Board "85"]

1. d4 {[%clk 0:03:00]}  Nf6 {[%clk 0:02:59]} 2. c4 {[%clk 0:03:01]}  g6 {[%clk 0:03:00]} 3. Nc3 {[%clk 0:03:01]}  d5 {[%clk 0:02:59]} 4. cxd5 {[%clk 0:03:01]}  Nxd5 {[%clk 0:03:00]} 5. e4 {[%clk 0:03:01]}  Nxc3 {[%clk 0:03:00]} 6. bxc3 {[%clk 0:03:02]}  Bg7 {[%clk 0:03:01]} 7. Nf3 {[%clk 0:03:03]}  c5 {[%clk 0:03:00]} 8. Rb1 {[%clk 0:03:03]}  O-O {[%clk 0:02:55]} 9. Be2 {[%clk 0:03:03]}  Nc6 {[%clk 0:02:48]} 10. d5 {[%clk 0:03:03]}  Ne5 {[%clk 0:02:47]} 11. Nxe5 {[%clk 0:03:04]}  Bxe5 {[%clk 0:02:48]} 12. Qd2 {[%clk 0:03:04]}  e6 {[%clk 0:02:45]} 13. f4 {[%clk 0:02:52]}  Bg7 {[%clk 0:02:39]} 14. c4 {[%clk 0:02:45]}  b6 {[%clk 0:02:39]} 15. O-O {[%clk 0:02:17]}  Bd4+ {[%clk 0:02:38]} 16. Kh1 {[%clk 0:02:16]}  f5 {[%clk 0:02:38]} 17. Bf3 {[%clk 0:01:10]}  fxe4 {[%clk 0:02:13]} 18. Bxe4 {[%clk 0:01:11]}  Bb7 {[%clk 0:02:13]} 19. Bb2 {[%clk 0:01:07]}  exd5 {[%clk 0:02:09]} 20. Bf3 {[%clk 0:01:03]}  Qf6 {[%clk 0:01:40]} 21. Bxd4 {[%clk 0:00:44]}  Qxd4 {[%clk 0:01:39]} 22. Qxd4 {[%clk 0:00:41]}  cxd4 {[%clk 0:01:40]} 23. Rbd1 {[%clk 0:00:38]}  Rac8 {[%clk 0:00:51]} 24. Rxd4 {[%clk 0:00:37]}  Rfd8 {[%clk 0:00:51]} 25. Rfd1 {[%clk 0:00:26]}  Kf7 {[%clk 0:00:48]} 26. cxd5 {[%clk 0:00:21]}  Rd6 {[%clk 0:00:46]} 27. Bg4 {[%clk 0:00:12]}  Rc5 {[%clk 0:00:45]} 28. Be6+ {[%clk 0:00:12]}  Kf6 {[%clk 0:00:45]} 29. Kg1 {[%clk 0:00:10]}  b5 {[%clk 0:00:36]} 30. R1d2 {[%clk 0:00:09]}  a5 {[%clk 0:00:35]} 31. Kf2 {[%clk 0:00:09]}  b4 {[%clk 0:00:35]} 32. g4 {[%clk 0:00:09]}  h6 {[%clk 0:00:16]} 33. h4 {[%clk 0:00:08]}  g5 {[%clk 0:00:17]} 34. hxg5+ {[%clk 0:00:08]}  hxg5 {[%clk 0:00:18]} 35. Ke3 {[%clk 0:00:04]}  Ba6 {[%clk 0:00:17]} 36. Ke4 {[%clk 0:00:03]}  Rc3 {[%clk 0:00:16]} 37. fxg5+ {[%clk 0:00:03]}  Kxg5 {[%clk 0:00:17]} 38. Ke5 {[%clk 0:00:03]}  Rd8 {[%clk 0:00:17]} 39. Re4 {[%clk 0:00:03]}  Bc4 {[%clk 0:00:07]} 40. Rh2 {[%clk 0:00:03]}  Rxd5+ {[%clk 0:00:02]} 41. Bxd5 {[%clk 0:00:04]}  Bxd5 {[%clk 0:00:03]} 42. Kxd5 {[%clk 0:00:03]}  b3 {[%clk 0:00:02]} 43. axb3 {[%clk 0:00:02]}  Rxb3 {[%clk 0:00:03]} 44. Rh5+ {[%clk 0:00:02]}  Kg6 {[%clk 0:00:03]} 45. Rhe5 {[%clk 0:00:03]}  Rb5+ {[%clk 0:00:03]} 46. Kd4 {[%clk 0:00:03]}  Rb4+ {[%clk 0:00:03]} 47. Ke3 {[%clk 0:00:04]}  Rb3+ {[%clk 0:00:04]} 48. Kf4 {[%clk 0:00:04]}  a4 {[%clk 0:00:04]} 49. Rxa4 {[%clk 0:00:04]}  Rb6 {[%clk 0:00:04]} 50. Rae4 {[%clk 0:00:05]}  Rb3 {[%clk 0:00:04]} 51. Re6+ {[%clk 0:00:05]}  Kf7 {[%clk 0:00:05]} 52. R6e5 {[%clk 0:00:06]}  Kf6 {[%clk 0:00:05]} 53. Rf5+ {[%clk 0:00:06]}  Kg6 {[%clk 0:00:05]} 54. Re6+ {[%clk 0:00:06]}  Kg7 {[%clk 0:00:06]} 55. Kg5 {[%clk 0:00:06]}  Rb7 {[%clk 0:00:06]} 56. Rg6+ {[%clk 0:00:06]}  Kh7 {[%clk 0:00:06]} 57. Rgf6 {[%clk 0:00:06]}  Kg7 {[%clk 0:00:06]} 58. Kh5 {[%clk 0:00:05]}  Ra7 {[%clk 0:00:05]} 59. Rf7+ {[%clk 0:00:05]}  Rxf7 {[%clk 0:00:05]} 60. Rxf7+ {[%clk 0:00:05]}  Kxf7 {[%clk 0:00:06]} 61. Kh6 {[%clk 0:00:06]}  Kf6 {[%clk 0:00:06]} 62. g5+ {[%clk 0:00:06]}  Kf7 {[%clk 0:00:06]} 63. Kh7 {[%clk 0:00:06]} 1-0


[Site "https://www.chess.com"]

[Event "Titled Tuesday Blitz August 1 Early 2023"]
[White "Vakhlamov, Igor L."]
[Black "KrokerGuy"]
[WhiteFideId "24126748"]
[WhiteElo "2743"]
[BlackElo "2419"]
[Result "1/2-1/2"]
[Round "1"]
[TimeControl "180+1"]
[Date "2023.08.01"]
[WhiteClock "0:00:18"]
[BlackClock "0:00:15"]
[Board "86"]

1. e4 {[%clk 0:02:53]}  e5 {[%clk 0:03:00]} 2. Nf3 {[%clk 0:02:52]}  Nc6 {[%clk 0:03:00]} 3. Nc3 {[%clk 0:02:52]}  Nf6 {[%clk 0:03:01]} 4. Bb5 {[%clk 0:02:53]}  Bb4 {[%clk 0:03:01]} 5. Nd5 {[%clk 0:02:52]}  Nxd5 {[%clk 0:02:40]} 6. exd5 {[%clk 0:02:53]}  Nd4 {[%clk 0:02:41]} 7. Nxd4 {[%clk 0:02:53]}  exd4 {[%clk 0:02:42]} 8. a3 {[%clk 0:02:53]}  Be7 {[%clk 0:02:35]} 9. O-O {[%clk 0:02:50]}  O-O {[%clk 0:02:35]} 10. Bd3 {[%clk 0:02:39]}  d6 {[%clk 0:02:27]} 11. Re1 {[%clk 0:02:39]}  Bf6 {[%clk 0:02:26]} 12. b4 {[%clk 0:02:38]}  a5 {[%clk 0:02:24]} 13. Bb2 {[%clk 0:02:39]}  c5 {[%clk 0:01:58]} 14. dxc6 {[%clk 0:02:33]}  bxc6 {[%clk 0:01:59]} 15. Qf3 {[%clk 0:02:28]}  Bb7 {[%clk 0:01:56]} 16. Qe4 {[%clk 0:02:15]}  g6 {[%clk 0:01:55]} 17. Bxd4 {[%clk 0:02:15]}  d5 {[%clk 0:01:44]} 18. Bxf6 {[%clk 0:02:10]}  Qxf6 {[%clk 0:01:04]} 19. Qe7 {[%clk 0:02:03]}  Qxe7 {[%clk 0:01:03]} 20. Rxe7 {[%clk 0:02:04]}  Ba6 {[%clk 0:01:02]} 21. Bxa6 {[%clk 0:02:00]}  Rxa6 {[%clk 0:01:03]} 22. Rc1 {[%clk 0:01:43]}  axb4 {[%clk 0:01:03]} 23. axb4 {[%clk 0:01:44]}  Rb8 {[%clk 0:00:56]} 24. c3 {[%clk 0:01:41]}  Ra2 {[%clk 0:00:56]} 25. d4 {[%clk 0:01:28]}  Rba8 {[%clk 0:00:49]} 26. g3 {[%clk 0:01:25]}  Rd2 {[%clk 0:00:47]} 27. Rc7 {[%clk 0:01:22]}  Raa2 {[%clk 0:00:46]} 28. Rf1 {[%clk 0:01:22]}  Ra6 {[%clk 0:00:47]} 29. Re1 {[%clk 0:01:17]}  Raa2 {[%clk 0:00:46]} 30. Rf1 {[%clk 0:01:17]}  Ra6 {[%clk 0:00:46]} 31. Re7 {[%clk 0:01:13]}  Rc2 {[%clk 0:00:44]} 32. Re3 {[%clk 0:00:57]}  Ra3 {[%clk 0:00:44]} 33. Rb1 {[%clk 0:00:57]}  Raxc3 {[%clk 0:00:40]} 34. Rxc3 {[%clk 0:00:57]}  Rxc3 {[%clk 0:00:41]} 35. b5 {[%clk 0:00:58]}  cxb5 {[%clk 0:00:15]} 36. Rxb5 {[%clk 0:00:59]}  Kg7 {[%clk 0:00:09]} 37. Rxd5 {[%clk 0:00:59]}  Kf6 {[%clk 0:00:10]} 38. Kg2 {[%clk 0:00:57]}  h5 {[%clk 0:00:10]} 39. h4 {[%clk 0:00:56]}  Ke6 {[%clk 0:00:10]} 40. Re5+ {[%clk 0:00:56]}  Kd6 {[%clk 0:00:11]} 41. Re4 {[%clk 0:00:56]}  Rd3 {[%clk 0:00:10]} 42. Kf1 {[%clk 0:00:53]}  Kd5 {[%clk 0:00:10]} 43. Rf4 {[%clk 0:00:53]}  f5 {[%clk 0:00:11]} 44. Ke2 {[%clk 0:00:45]}  Rxd4 {[%clk 0:00:10]} 45. Rf3 {[%clk 0:00:45]}  Ra4 {[%clk 0:00:09]} 46. Rb3 {[%clk 0:00:44]}  Ra6 {[%clk 0:00:07]} 47. Re3 {[%clk 0:00:41]}  Ra2+ {[%clk 0:00:06]} 48. Kf3 {[%clk 0:00:41]}  Ra4 {[%clk 0:00:06]} 49. Re7 {[%clk 0:00:40]}  Rb4 {[%clk 0:00:05]} 50. Rg7 {[%clk 0:00:38]}  Rg4 {[%clk 0:00:06]} 51. Re7 {[%clk 0:00:36]}  Kd6 {[%clk 0:00:06]} 52. Re8 {[%clk 0:00:36]}  Kd5 {[%clk 0:00:06]} 53. Kg2 {[%clk 0:00:31]}  Re4 {[%clk 0:00:07]} 54. Rg8 {[%clk 0:00:28]}  Re6 {[%clk 0:00:08]} 55. Kf3 {[%clk 0:00:26]}  Ke5 {[%clk 0:00:08]} 56. Rf8 {[%clk 0:00:26]}  Rf6 {[%clk 0:00:08]} 57. Re8+ {[%clk 0:00:25]}  Re6 {[%clk 0:00:08]} 58. Rxe6+ {[%clk 0:00:16]}  Kxe6 {[%clk 0:00:09]} 59. Kf4 {[%clk 0:00:16]}  Kf6 {[%clk 0:00:10]} 60. f3 {[%clk 0:00:17]}  Kf7 {[%clk 0:00:10]} 61. Kg5 {[%clk 0:00:18]}  Kg7 {[%clk 0:00:10]} 62. f4 {[%clk 0:00:15]}  Kf7 {[%clk 0:00:11]} 63. Kh6 {[%clk 0:00:15]}  Kf6 {[%clk 0:00:11]} 64. Kh7 {[%clk 0:00:16]}  Kf7 {[%clk 0:00:12]} 65. Kh8 {[%clk 0:00:16]}  Kf8 {[%clk 0:00:13]} 66. Kh7 {[%clk 0:00:17]}  Kf7 {[%clk 0:00:13]} 67. Kh6 {[%clk 0:00:18]}  Kf6 {[%clk 0:00:14]} 68. Kh7 {[%clk 0:00:18]}  Kf7 {[%clk 0:00:15]} 1/2-1/2


[Site "https://www.chess.com"]

[Event "Titled Tuesday Blitz August 1 Early 2023"]
[White "Silva Lucena, Cristian"]
[Black "Amilal Munkhdalai"]
[WhiteFideId "2232588"]
[BlackFideId "4903250"]
[WhiteElo "2411"]
[BlackElo "2727"]
[Result "0-1"]
[Round "1"]
[TimeControl "180+1"]
[Date "2023.08.01"]
[WhiteClock "0:00:44"]
[BlackClock "0:00:37"]
[Board "95"]

1. e4 {[%clk 0:02:59]}  c5 {[%clk 0:03:00]} 2. Nf3 {[%clk 0:02:59]}  Nc6 {[%clk 0:03:00]} 3. d4 {[%clk 0:03:00]}  cxd4 {[%clk 0:03:00]} 4. Nxd4 {[%clk 0:03:01]}  Qc7 {[%clk 0:03:01]} 5. Nc3 {[%clk 0:03:00]}  e6 {[%clk 0:03:01]} 6. g3 {[%clk 0:03:00]}  Nf6 {[%clk 0:03:00]} 7. Bg2 {[%clk 0:03:00]}  a6 {[%clk 0:03:00]} 8. O-O {[%clk 0:03:01]}  Nxd4 {[%clk 0:03:01]} 9. Qxd4 {[%clk 0:03:00]}  Bc5 {[%clk 0:03:01]} 10. Bf4 {[%clk 0:03:01]}  d6 {[%clk 0:02:58]} 11. Qd2 {[%clk 0:02:57]}  h6 {[%clk 0:02:53]} 12. Rad1 {[%clk 0:02:56]}  e5 {[%clk 0:02:52]} 13. Be3 {[%clk 0:02:56]}  Bxe3 {[%clk 0:02:52]} 14. Qxe3 {[%clk 0:02:53]}  O-O {[%clk 0:02:52]} 15. Nd5 {[%clk 0:02:50]}  Nxd5 {[%clk 0:02:52]} 16. exd5 {[%clk 0:02:46]}  Bf5 {[%clk 0:02:47]} 17. Rc1 {[%clk 0:02:37]}  b5 {[%clk 0:02:40]} 18. c3 {[%clk 0:02:35]}  Rac8 {[%clk 0:02:37]} 19. a3 {[%clk 0:02:34]}  Bh7 {[%clk 0:02:34]} 20. Bh3 {[%clk 0:02:31]}  f5 {[%clk 0:02:33]} 21. f4 {[%clk 0:02:32]}  Rce8 {[%clk 0:02:32]} 22. fxe5 {[%clk 0:02:28]}  Rxe5 {[%clk 0:02:31]} 23. Qd2 {[%clk 0:02:23]}  Qc5+ {[%clk 0:02:28]} 24. Qf2 {[%clk 0:02:17]}  Rxd5 {[%clk 0:02:13]} 25. Bg2 {[%clk 0:02:16]}  Rd2 {[%clk 0:02:07]} 26. Qxc5 {[%clk 0:02:15]}  dxc5 {[%clk 0:02:08]} 27. Rf2 {[%clk 0:02:16]}  Rfd8 {[%clk 0:02:07]} 28. Re1 {[%clk 0:02:15]}  Kf7 {[%clk 0:01:52]} 29. Bb7 {[%clk 0:02:09]}  a5 {[%clk 0:01:48]} 30. Bc6 {[%clk 0:02:08]}  b4 {[%clk 0:01:43]} 31. axb4 {[%clk 0:02:05]}  axb4 {[%clk 0:01:43]} 32. cxb4 {[%clk 0:01:43]}  cxb4 {[%clk 0:01:43]} 33. Bb5 {[%clk 0:01:43]}  Rxf2 {[%clk 0:01:32]} 34. Kxf2 {[%clk 0:01:43]}  Rd2+ {[%clk 0:01:32]} 35. Re2 {[%clk 0:01:43]}  Rxe2+ {[%clk 0:01:33]} 36. Kxe2 {[%clk 0:01:44]}  Ke6 {[%clk 0:01:32]} 37. Ke3 {[%clk 0:01:45]}  Ke5 {[%clk 0:01:31]} 38. Bc4 {[%clk 0:01:45]}  g5 {[%clk 0:01:31]} 39. Bb3 {[%clk 0:01:39]}  f4+ {[%clk 0:01:25]} 40. gxf4+ {[%clk 0:01:39]}  gxf4+ {[%clk 0:01:25]} 41. Kf2 {[%clk 0:01:35]}  Be4 {[%clk 0:01:23]} 42. Bc4 {[%clk 0:01:34]}  Kd4 {[%clk 0:01:23]} 43. Be2 {[%clk 0:01:34]}  Bd5 {[%clk 0:01:17]} 44. h4 {[%clk 0:01:33]}  Be4 {[%clk 0:01:17]} 45. Bf1 {[%clk 0:01:30]}  b3 {[%clk 0:01:13]} 46. Be2 {[%clk 0:01:29]}  Bd3 {[%clk 0:01:01]} 47. Bd1 {[%clk 0:01:28]}  Bc2 {[%clk 0:01:01]} 48. Be2 {[%clk 0:01:28]}  Ke4 {[%clk 0:01:00]} 49. Bc4 {[%clk 0:01:24]}  Kd4 {[%clk 0:01:00]} 50. Be2 {[%clk 0:01:21]}  Be4 {[%clk 0:00:50]} 51. Bd1 {[%clk 0:01:22]}  Bd5 {[%clk 0:00:51]} 52. Be2 {[%clk 0:01:19]}  f3 {[%clk 0:00:49]} 53. Bf1 {[%clk 0:01:12]}  Bc4 {[%clk 0:00:49]} 54. Bh3 {[%clk 0:01:10]}  Ke4 {[%clk 0:00:43]} 55. Bg4 {[%clk 0:01:05]}  Kd3 {[%clk 0:00:41]} 56. Bf5+ {[%clk 0:01:02]}  Kd2 {[%clk 0:00:42]} 57. Kxf3 {[%clk 0:01:02]}  Kc1 {[%clk 0:00:42]} 58. Ke3 {[%clk 0:01:00]}  Kxb2 {[%clk 0:00:43]} 59. Kd2 {[%clk 0:01:01]}  Bf7 {[%clk 0:00:39]} 60. Be4 {[%clk 0:00:58]}  Ka3 {[%clk 0:00:39]} 61. Kc3 {[%clk 0:00:57]}  b2 {[%clk 0:00:39]} 62. Bb1 {[%clk 0:00:44]}  Ba2 {[%clk 0:00:38]} 63. Kc2 {[%clk 0:00:45]}  Bxb1+ {[%clk 0:00:36]} 64. Kxb1 {[%clk 0:00:46]}  h5 {[%clk 0:00:36]} 65. Kc2 {[%clk 0:00:44]}  Ka2 {[%clk 0:00:37]} 0-1


[Site "https://www.chess.com"]

[Event "Titled Tuesday Blitz August 1 Early 2023"]
[White "Yanchenko, Roman"]
[Black "Dobre, Claudiu-Cristian"]
[WhiteFideId "4137329"]
[BlackFideId "1211854"]
[WhiteElo "2726"]
[BlackElo "2410"]
[Result "1-0"]
[Round "1"]
[TimeControl "180+1"]
[Date "2023.08.01"]
[WhiteClock "0:01:51"]
[BlackClock "0:00:00"]
[Board "96"]

1. d4 {[%clk 0:03:00]}  d5 {[%clk 0:02:59]} 2. Nf3 {[%clk 0:03:00]}  Nf6 {[%clk 0:02:58]} 3. c4 {[%clk 0:03:00]}  c6 {[%clk 0:02:58]} 4. Nc3 {[%clk 0:03:01]}  e6 {[%clk 0:02:56]} 5. Bg5 {[%clk 0:03:01]}  Nbd7 {[%clk 0:02:56]} 6. e3 {[%clk 0:03:01]}  Qa5 {[%clk 0:02:56]} 7. Bxf6 {[%clk 0:03:01]}  Nxf6 {[%clk 0:02:54]} 8. Rc1 {[%clk 0:03:01]}  Ne4 {[%clk 0:02:37]} 9. Qb3 {[%clk 0:03:01]}  Nxc3 {[%clk 0:02:08]} 10. bxc3 {[%clk 0:03:01]}  Ba3 {[%clk 0:02:07]} 11. Rb1 {[%clk 0:03:01]}  O-O {[%clk 0:02:07]} 12. c5 {[%clk 0:02:33]}  b6 {[%clk 0:00:53]} 13. Ne5 {[%clk 0:02:32]}  bxc5 {[%clk 0:00:52]} 14. Nxc6 {[%clk 0:02:31]}  Qb6 {[%clk 0:00:52]} 15. Bb5 {[%clk 0:02:13]}  a6 {[%clk 0:00:51]} 16. Qxa3 {[%clk 0:02:07]}  Bb7 {[%clk 0:00:05]} 17. Ne7+ {[%clk 0:02:04]}  Kh8 {[%clk 0:00:04]} 18. Bd3 {[%clk 0:02:04]}  Qc7 {[%clk 0:00:02]} 19. Qxc5 {[%clk 0:02:04]}  Qxc5 {[%clk 0:00:01]} 20. dxc5 {[%clk 0:02:05]}  Ra7 {[%clk 0:00:01]} 21. Rb6 {[%clk 0:01:53]}  Ba8 {[%clk 0:00:01]} 22. Nc6 {[%clk 0:01:53]}  Rc7 {[%clk 0:00:00]} 23. Ne5 {[%clk 0:01:51]} 1-0


[Site "https://www.chess.com"]

[Event "Titled Tuesday Blitz August 1 Early 2023"]
[White "Federzoni, Enzo"]
[Black "Dimitrov, Atanas"]
[WhiteFideId "2173301"]
[BlackFideId "2901315"]
[WhiteElo "2407"]
[BlackElo "2725"]
[Result "0-1"]
[Round "1"]
[TimeControl "180+1"]
[Date "2023.08.01"]
[WhiteClock "0:00:27"]
[BlackClock "0:00:50"]
[Board "97"]

1. e4 {[%clk 0:03:00]}  c5 {[%clk 0:02:59]} 2. Nf3 {[%clk 0:03:01]}  d6 {[%clk 0:02:58]} 3. d4 {[%clk 0:03:00]}  cxd4 {[%clk 0:02:59]} 4. Nxd4 {[%clk 0:03:00]}  Nf6 {[%clk 0:02:59]} 5. Nc3 {[%clk 0:03:01]}  Nc6 {[%clk 0:02:59]} 6. Be3 {[%clk 0:02:51]}  Ng4 {[%clk 0:02:43]} 7. Nxc6 {[%clk 0:02:30]}  bxc6 {[%clk 0:02:23]} 8. Bc1 {[%clk 0:02:30]}  g6 {[%clk 0:02:20]} 9. Be2 {[%clk 0:02:30]}  Nf6 {[%clk 0:02:20]} 10. Bf3 {[%clk 0:02:15]}  Qc7 {[%clk 0:02:17]} 11. Bf4 {[%clk 0:02:10]}  Bg7 {[%clk 0:02:16]} 12. Qe2 {[%clk 0:02:08]}  Nd7 {[%clk 0:02:08]} 13. O-O {[%clk 0:02:06]}  O-O {[%clk 0:02:07]} 14. g3 {[%clk 0:01:45]}  a5 {[%clk 0:02:01]} 15. Rfd1 {[%clk 0:01:35]}  Ba6 {[%clk 0:01:59]} 16. Qe3 {[%clk 0:01:30]}  Ne5 {[%clk 0:01:47]} 17. Bg2 {[%clk 0:01:28]}  Nc4 {[%clk 0:01:42]} 18. Qc1 {[%clk 0:01:27]}  Rab8 {[%clk 0:01:42]} 19. Bh6 {[%clk 0:01:08]}  Nxb2 {[%clk 0:01:31]} 20. Bxg7 {[%clk 0:01:07]}  Kxg7 {[%clk 0:01:32]} 21. Re1 {[%clk 0:01:02]}  Nc4 {[%clk 0:01:25]} 22. Rb1 {[%clk 0:00:46]}  Rxb1 {[%clk 0:01:15]} 23. Qxb1 {[%clk 0:00:47]}  Rb8 {[%clk 0:01:13]} 24. Qa1 {[%clk 0:00:48]}  Kg8 {[%clk 0:01:06]} 25. Bf1 {[%clk 0:00:48]}  Qa7 {[%clk 0:01:03]} 26. a4 {[%clk 0:00:37]}  Ne5 {[%clk 0:01:01]} 27. Bg2 {[%clk 0:00:38]}  Qc5 {[%clk 0:00:58]} 28. Rb1 {[%clk 0:00:31]}  Rxb1+ {[%clk 0:00:54]} 29. Nxb1 {[%clk 0:00:32]}  Qxc2 {[%clk 0:00:54]} 30. Na3 {[%clk 0:00:31]}  Qxa4 {[%clk 0:00:52]} 31. Qc3 {[%clk 0:00:28]}  Qd1+ {[%clk 0:00:51]} 32. Bf1 {[%clk 0:00:27]}  Qxf1# {[%clk 0:00:50]} 0-1


[Site "https://www.chess.com"]